[Event "*** Biggest EVER Titled Tuesday"]
[Site "Chess.com"]
[Date "2018.04.17"]
[Round "4"]
[White "Abund"]
[Black "ajkom197"]
[Result "0-1"]
[WhiteElo "2458"]
[BlackElo "2397"]
[TimeControl "180+2"]
[EndTime "13:56:45 PDT"]
[Termination "ajkom197 won by resignation"]

1. Nf3 {[%clk 0:03:01.9]} 1... d5 {[%clk 0:02:57.3]} 2. d4 {[%clk 0:03:02.4]}
2... Nf6 {[%clk 0:02:58.3]} 3. c4 {[%clk 0:03:03.5]} 3... e6 {[%clk 0:02:58.8]}
4. Nc3 {[%clk 0:03:04.1]} 4... c5 {[%clk 0:02:56.8]} 5. cxd5 {[%clk 0:03:04.4]}
5... exd5 {[%clk 0:02:56.7]} 6. g3 {[%clk 0:03:04.6]} 6... Nc6 {[%clk
0:02:56.9]} 7. Bg2 {[%clk 0:03:05.6]} 7... Be6 {[%clk 0:02:56.4]} 8. O-O {[%clk
0:03:06.3]} 8... c4 {[%clk 0:02:52.4]} 9. Re1 {[%clk 0:03:00.2]} 9... Bb4 {[%clk
0:02:50.7]} 10. Ng5 {[%clk 0:02:42.2]} 10... Bf5 {[%clk 0:02:49.9]} 11. e4
{[%clk 0:02:38.1]} 11... Bxc3 {[%clk 0:02:27.7]} 12. bxc3 {[%clk 0:02:35.5]}
12... dxe4 {[%clk 0:02:27.7]} 13. Ba3 {[%clk 0:01:59.1]} 13... Qd5 {[%clk
0:02:23.2]} 14. Nxe4 {[%clk 0:01:49]} 14... Nxe4 {[%clk 0:02:16.9]} 15. f3
{[%clk 0:01:49.8]} 15... Qa5 {[%clk 0:02:11.6]} 16. Qc1 {[%clk 0:01:43.8]} 16...
O-O-O {[%clk 0:01:47.7]} 17. fxe4 {[%clk 0:01:44]} 17... Bg4 {[%clk 0:01:45.9]}
18. e5 {[%clk 0:01:37.1]} 18... Be6 {[%clk 0:01:41.7]} 19. Bxc6 {[%clk
0:01:29.5]} 19... bxc6 {[%clk 0:01:34]} 20. Rb1 {[%clk 0:01:30.2]} 20... Rd7
{[%clk 0:01:27.9]} 21. Qb2 {[%clk 0:01:26.9]} 21... Qb5 {[%clk 0:01:15.1]} 22.
Qc2 {[%clk 0:01:00]} 22... Qa6 {[%clk 0:01:11.4]} 23. Bd6 {[%clk 0:00:58.4]}
23... Rb7 {[%clk 0:01:05.8]} 24. Rxb7 {[%clk 0:00:48.6]} 24... Kxb7 {[%clk
0:01:05.7]} 25. Rb1+ {[%clk 0:00:50.5]} 25... Ka8 {[%clk 0:01:04.4]} 26. Qb2
{[%clk 0:00:51.2]} 26... Qb6 {[%clk 0:01:00.3]} 27. Qxb6 {[%clk 0:00:50]} 27...
axb6 {[%clk 0:01:00.7]} 28. Rxb6 {[%clk 0:00:51.9]} 28... Bd5 {[%clk 0:01:01.8]}
29. a4 {[%clk 0:00:45.6]} 29... Rd8 {[%clk 0:00:56.7]} 30. a5 {[%clk 0:00:45.2]}
30... Rd7 {[%clk 0:00:53.3]} 31. Kf2 {[%clk 0:00:35.4]} 31... Rb7 {[%clk
0:00:52.9]} 32. Ra6+ {[%clk 0:00:32.7]} 32... Ra7 {[%clk 0:00:53.4]} 33. Rb6
{[%clk 0:00:34.6]} 33... Rb7 {[%clk 0:00:54.2]} 34. Bf8 {[%clk 0:00:19.7]} 34...
Rxb6 {[%clk 0:00:53.8]} 35. axb6 {[%clk 0:00:21.6]} 35... g6 {[%clk 0:00:55.2]}
36. Ke3 {[%clk 0:00:22.8]} 36... h5 {[%clk 0:00:53.6]} 37. Kf4 {[%clk
0:00:23.2]} 37... Kb7 {[%clk 0:00:54.2]} 38. Bc5 {[%clk 0:00:23.9]} 38... Be6
{[%clk 0:00:53.7]} 39. Kg5 {[%clk 0:00:24.5]} 39... Bd5 {[%clk 0:00:53.6]} 40.
Kf6 {[%clk 0:00:25.7]} 40... Be6 {[%clk 0:00:54.7]} 41. Kg5 {[%clk 0:00:26.6]}
41... Bd5 {[%clk 0:00:55.6]} 42. Kh6 {[%clk 0:00:27.9]} 42... Be6 {[%clk
0:00:56.7]} 43. Kg7 {[%clk 0:00:29.3]} 43... Bd5 {[%clk 0:00:57.8]} 44. Kf8
{[%clk 0:00:30.7]} 44... Be6 {[%clk 0:00:58.8]} 45. Ke7 {[%clk 0:00:32.1]} 45...
Bd5 {[%clk 0:00:59.8]} 46. Kd6 {[%clk 0:00:33.4]} 46... Be6 {[%clk 0:01:00.7]}
47. Ke7 {[%clk 0:00:33.9]} 47... Bd5 {[%clk 0:01:01.2]} 48. Kf6 {[%clk
0:00:35.4]} 48... Be6 {[%clk 0:01:02]} 49. Kg5 {[%clk 0:00:36.7]} 49... Bd5
{[%clk 0:01:03.2]} 50. Kf4 {[%clk 0:00:36.8]} 50... Be6 {[%clk 0:01:04.1]} 51.
Ke3 {[%clk 0:00:37.9]} 51... Bd5 {[%clk 0:01:05.3]} 52. Ke2 {[%clk 0:00:39.8]}
52... Be6 {[%clk 0:01:06.4]} 53. Kf2 {[%clk 0:00:41.7]} 53... Bd5 {[%clk
0:01:08.1]} 54. Ke3 {[%clk 0:00:43.6]} 54... Be6 {[%clk 0:01:09.6]} 55. Kf4
{[%clk 0:00:45.5]} 55... Bd5 {[%clk 0:01:11.1]} 56. Kg5 {[%clk 0:00:47.4]} 56...
Be6 {[%clk 0:01:12.5]} 57. Kh6 {[%clk 0:00:49.3]} 57... Bd5 {[%clk 0:01:13.7]}
58. Kg7 {[%clk 0:00:51.2]} 58... Be6 {[%clk 0:01:14.9]} 59. Kf6 {[%clk
0:00:53.1]} 59... Bd5 {[%clk 0:01:15.9]} 60. Kg5 {[%clk 0:00:55]} 60... Be6
{[%clk 0:01:17]} 61. Kh4 {[%clk 0:00:55.3]} 61... Bd5 {[%clk 0:01:17.9]} 62. g4
{[%clk 0:00:57.2]} 62... hxg4 {[%clk 0:01:12.9]} 63. Kxg4 {[%clk 0:00:59.1]}
63... Be6+ {[%clk 0:01:13.5]} 64. Kg5 {[%clk 0:00:59.6]} 64... Bd5 {[%clk
0:01:14]} 65. Kf6 {[%clk 0:01:01]} 65... Be6 {[%clk 0:01:15]} 66. Ke7 {[%clk
0:01:02.4]} 66... Bd5 {[%clk 0:01:16.2]} 67. Kf8 {[%clk 0:01:03.9]} 67... Be6
{[%clk 0:01:17.4]} 68. Kg7 {[%clk 0:01:05.8]} 68... Bd5 {[%clk 0:01:18.7]} 69.
Kf6 {[%clk 0:01:07.1]} 69... Be6 {[%clk 0:01:19.8]} 70. Ke7 {[%clk 0:01:09]}
70... Bd5 {[%clk 0:01:21.1]} 71. Kd7 {[%clk 0:01:10.6]} 71... Be6+ {[%clk
0:01:23]} 72. Kd6 {[%clk 0:01:11.9]} 72... Bd5 {[%clk 0:01:24.3]} 73. Ke7 {[%clk
0:01:12.8]} 73... Be6 {[%clk 0:01:25.5]} 74. Kf8 {[%clk 0:01:14.1]} 74... Bd5
{[%clk 0:01:26.8]} 75. Kg7 {[%clk 0:01:15.5]} 75... Be6 {[%clk 0:01:28.1]} 76.
Kh6 {[%clk 0:01:17.1]} 76... Bd5 {[%clk 0:01:29.5]} 77. Kg5 {[%clk 0:01:18.9]}
77... Be6 {[%clk 0:01:30.8]} 78. Kf4 {[%clk 0:01:20.6]} 78... Bd5 {[%clk
0:01:32.3]} 79. Ke3 {[%clk 0:01:22.2]} 79... Be6 {[%clk 0:01:33.6]} 80. Kf2
{[%clk 0:01:23.8]} 80... Bd5 {[%clk 0:01:35]} 81. Ke2 {[%clk 0:01:25.7]} 81...
Be6 {[%clk 0:01:36.3]} 82. Kd2 {[%clk 0:01:27.6]} 82... Bd5 {[%clk 0:01:37.6]}
83. Kc2 {[%clk 0:01:29.5]} 83... Be6 {[%clk 0:01:38.9]} 84. Kc1 {[%clk
0:01:31.4]} 84... Bd5 {[%clk 0:01:40.3]} 85. Kd2 {[%clk 0:01:33.2]} 85... Be6
{[%clk 0:01:41.6]} 86. Ke3 {[%clk 0:01:35.1]} 86... Bd5 {[%clk 0:01:43]} 87. Kf4
{[%clk 0:01:33.3]} 87... Be6 {[%clk 0:01:44.1]} 88. Kg5 {[%clk 0:01:34.5]} 88...
Bd5 {[%clk 0:01:44.5]} 89. Kf6 {[%clk 0:01:35.8]} 89... Be6 {[%clk 0:01:45.8]}
90. Kg7 {[%clk 0:01:37.7]} 90... Bd5 {[%clk 0:01:46.8]} 91. Kh6 {[%clk
0:01:39.6]} 91... Be6 {[%clk 0:01:48.1]} 92. h4 {[%clk 0:01:41.5]} 92... Bd5
{[%clk 0:01:48.3]} 93. Kg5 {[%clk 0:01:43.4]} 93... Be6 {[%clk 0:01:49.3]} 94.
Kf4 {[%clk 0:01:45.3]} 94... Bd5 {[%clk 0:01:50.6]} 95. Ke3 {[%clk 0:01:47.2]}
95... Be6 {[%clk 0:01:51.9]} 96. Kf2 {[%clk 0:01:49.1]} 96... Bd5 {[%clk
0:01:53.4]} 97. Kg3 {[%clk 0:01:51]} 97... Be6 {[%clk 0:01:54.7]} 98. Kf2 {[%clk
0:01:52.9]} 98... Bd5 {[%clk 0:01:56]} 99. Ke2 {[%clk 0:01:54.7]} 99... Be6
{[%clk 0:01:57.1]} 100. Kd2 {[%clk 0:01:56.5]} 100... Bd5 {[%clk 0:01:58.2]}
101. Kc2 {[%clk 0:01:58.4]} 101... Be6 {[%clk 0:01:59.4]} 102. Kc1 {[%clk
0:01:58.6]} 102... Bd5 {[%clk 0:02:00.2]} 103. Kd2 {[%clk 0:01:59.9]} 103... Be6
{[%clk 0:02:01.5]} 104. Ke3 {[%clk 0:02:01.4]} 104... Bd5 {[%clk 0:02:02.7]}
105. h5 {[%clk 0:02:03.3]} 105... gxh5 {[%clk 0:02:03.1]} 106. Kf4 {[%clk
0:02:04.6]} 106... Be6 {[%clk 0:02:01.8]} 107. Kg5 {[%clk 0:02:05.7]} 107... Bg4
{[%clk 0:02:02.8]} 108. Kf4 {[%clk 0:02:04.8]} 108... Be6 {[%clk 0:02:00.4]}
109. Kg3 {[%clk 0:02:05.6]} 109... Kc8 {[%clk 0:01:59.4]} 110. Be7 {[%clk
0:02:04.6]} 110... Kb7 {[%clk 0:01:52.6]} 111. Bd8 {[%clk 0:02:05.2]} 111... Bd5
{[%clk 0:01:47.5]} 112. Kh4 {[%clk 0:02:05]} 112... Bf3 {[%clk 0:01:48.1]} 113.
Kg5 {[%clk 0:02:05.9]} 113... Bg4 {[%clk 0:01:47.5]} 114. Kh4 {[%clk 0:02:02.6]}
114... Kc8 {[%clk 0:01:44.3]} 115. Bc7 {[%clk 0:02:02.1]} 115... Kb7 {[%clk
0:01:43.7]} 116. Kg5 {[%clk 0:02:02.6]} 116... Kc8 {[%clk 0:01:19.6]} 117. Bd8
{[%clk 0:02:03.4]} 117... Kxd8 {[%clk 0:01:10.4]} 118. b7 {[%clk 0:01:52]}
118... Kc7 {[%clk 0:01:10.8]} 119. e6 {[%clk 0:01:53.9]} 119... Bxe6 {[%clk
0:01:10.3]} 0-1

[Event "*** Biggest EVER Titled Tuesday"]
[Site "Chess.com"]
[Date "2018.04.17"]
[Round "4"]
[White "DishonorOnYourCow"]
[Black "ahmadzada13"]
[Result "1/2-1/2"]
[WhiteElo "2317"]
[BlackElo "2562"]
[TimeControl "180+2"]
[EndTime "13:59:22 PDT"]
[Termination "Game drawn by agreement"]

1. d4 {[%clk 0:03:01.9]} 1... Nf6 {[%clk 0:03:00.3]} 2. c4 {[%clk 0:03:00.2]}
2... c5 {[%clk 0:03:00.7]} 3. d5 {[%clk 0:03:01.2]} 3... e6 {[%clk 0:03:00.7]}
4. Nc3 {[%clk 0:03:01.9]} 4... exd5 {[%clk 0:03:01.5]} 5. cxd5 {[%clk
0:03:03.1]} 5... Bd6 {[%clk 0:03:02.4]} 6. Nf3 {[%clk 0:03:00.6]} 6... O-O
{[%clk 0:03:02.6]} 7. e4 {[%clk 0:02:55.1]} 7... Re8 {[%clk 0:03:02.1]} 8. Bd3
{[%clk 0:02:55.7]} 8... Bc7 {[%clk 0:03:01.4]} 9. O-O {[%clk 0:02:56.1]} 9... d6
{[%clk 0:03:02.7]} 10. a4 {[%clk 0:02:55.4]} 10... a6 {[%clk 0:03:03.7]} 11. h3
{[%clk 0:02:55]} 11... Nbd7 {[%clk 0:03:04.8]} 12. Bf4 {[%clk 0:02:55.5]} 12...
Rb8 {[%clk 0:03:04.6]} 13. Nd2 {[%clk 0:02:53.1]} 13... Ne5 {[%clk 0:03:05]} 14.
Bxe5 {[%clk 0:02:29.5]} 14... Rxe5 {[%clk 0:03:04.7]} 15. f4 {[%clk 0:02:29.4]}
15... Re8 {[%clk 0:03:02.6]} 16. Qf3 {[%clk 0:02:25.3]} 16... h5 {[%clk
0:02:46.4]} 17. Rae1 {[%clk 0:02:17.4]} 17... Bd7 {[%clk 0:02:46.5]} 18. e5
{[%clk 0:01:38.7]} 18... dxe5 {[%clk 0:02:45.5]} 19. Nde4 {[%clk 0:01:38.1]}
19... Nxe4 {[%clk 0:02:33.4]} 20. Nxe4 {[%clk 0:01:32.2]} 20... Bf5 {[%clk
0:02:21.5]} 21. fxe5 {[%clk 0:01:05]} 21... Rxe5 {[%clk 0:02:20.5]} 22. d6
{[%clk 0:00:54.3]} 22... Bb6 {[%clk 0:02:15.1]} 23. Kh1 {[%clk 0:00:27.5]} 23...
Bg6 {[%clk 0:02:07.3]} 24. Ng3 {[%clk 0:00:17.1]} 24... Rxe1 {[%clk 0:02:04.9]}
25. Rxe1 {[%clk 0:00:18.4]} 25... Qxd6 {[%clk 0:02:04.5]} 26. Bxg6 {[%clk
0:00:18.6]} 26... Qxg6 {[%clk 0:02:00.9]} 27. Nxh5 {[%clk 0:00:18.3]} 27... Bc7
{[%clk 0:01:49.5]} 28. Nf4 {[%clk 0:00:13.8]} 28... Qd6 {[%clk 0:01:45.6]} 29.
g3 {[%clk 0:00:13.8]} 29... Rd8 {[%clk 0:01:44]} 30. Nh5 {[%clk 0:00:10.3]}
30... Qc6 {[%clk 0:01:32.9]} 31. Qxc6 {[%clk 0:00:10.1]} 31... bxc6 {[%clk
0:01:34.5]} 32. Re7 {[%clk 0:00:10]} 32... Bd6 {[%clk 0:01:35]} 33. Ra7 {[%clk
0:00:10.9]} 33... Rb8 {[%clk 0:01:33.2]} 34. Rxa6 {[%clk 0:00:11.5]} 34... Rxb2
{[%clk 0:01:31.7]} 35. Rxc6 {[%clk 0:00:12.6]} 35... Be7 {[%clk 0:01:28.9]} 36.
a5 {[%clk 0:00:13.4]} 36... Ra2 {[%clk 0:01:29.9]} 37. a6 {[%clk 0:00:14.3]}
37... c4 {[%clk 0:01:19]} 38. Rxc4 {[%clk 0:00:13.7]} 38... Rxa6 {[%clk
0:01:19.5]} 39. Nf4 {[%clk 0:00:14.8]} 39... Bd6 {[%clk 0:01:18.6]} 40. Re4
{[%clk 0:00:14.5]} 40... Ra1+ {[%clk 0:01:17.7]} 41. Kg2 {[%clk 0:00:15.3]}
41... Ra2+ {[%clk 0:01:19]} 42. Re2 {[%clk 0:00:16.5]} 42... Ra3 {[%clk
0:01:19.5]} 43. Re4 {[%clk 0:00:13.4]} 43... g6 {[%clk 0:01:17.8]} 44. Ne2
{[%clk 0:00:12.9]} 44... Kg7 {[%clk 0:01:16.7]} 45. Rd4 {[%clk 0:00:13.8]} 45...
Be5 {[%clk 0:01:16]} 46. Re4 {[%clk 0:00:15]} 46... Bf6 {[%clk 0:01:15.8]} 47.
h4 {[%clk 0:00:13.5]} 47... Ra2 {[%clk 0:01:13.4]} 48. Kf3 {[%clk 0:00:13.7]}
48... Ra3+ {[%clk 0:01:13.4]} 49. Re3 {[%clk 0:00:14.9]} 49... Ra1 {[%clk
0:01:14.5]} 50. Nf4 {[%clk 0:00:15.5]} 50... Bd4 {[%clk 0:01:13.4]} 51. Rd3
{[%clk 0:00:16.5]} 51... Be5 {[%clk 0:01:12.9]} 52. Rd7 {[%clk 0:00:15.5]} 52...
Ra3+ {[%clk 0:01:09.8]} 53. Rd3 {[%clk 0:00:15.6]} 53... Ra4 {[%clk 0:01:10.1]}
54. Ne2 {[%clk 0:00:16.1]} 54... Kf6 {[%clk 0:01:10.1]} 55. Rb3 {[%clk
0:00:14.3]} 55... Ra1 {[%clk 0:01:09]} 56. Kg2 {[%clk 0:00:13]} 56... Ke6 {[%clk
0:01:06]} 57. Re3 {[%clk 0:00:12]} 57... Kd6 {[%clk 0:01:05.6]} 58. Rf3 {[%clk
0:00:13.3]} 58... Ra2 {[%clk 0:01:05.6]} 59. Kf1 {[%clk 0:00:13.2]} 59... Ke6
{[%clk 0:01:04.5]} 60. Nf4+ {[%clk 0:00:11.3]} 60... Ke7 {[%clk 0:00:55.3]} 61.
Nd3 {[%clk 0:00:12.1]} 61... Bd4 {[%clk 0:00:53.9]} 62. Rf4 {[%clk 0:00:11.7]}
62... Ra1+ {[%clk 0:00:53.8]} 63. Kg2 {[%clk 0:00:11.9]} 63... Bg7 {[%clk
0:00:53.8]} 64. Nf2 {[%clk 0:00:12.1]} 64... Ra2 {[%clk 0:00:52.8]} 65. Rf3
{[%clk 0:00:13.3]} 65... Bd4 {[%clk 0:00:51.9]} 66. Rf4 {[%clk 0:00:13.7]} 66...
Ba7 {[%clk 0:00:49.8]} 67. Kf1 {[%clk 0:00:13.9]} 67... f5 {[%clk 0:00:50.4]}
68. Rf3 {[%clk 0:00:12]} 68... Kf6 {[%clk 0:00:48.1]} 69. Nh3 {[%clk 0:00:12.6]}
69... Ke5 {[%clk 0:00:48.5]} 70. Ng5 {[%clk 0:00:12.4]} 70... Ra1+ {[%clk
0:00:45.6]} 71. Kg2 {[%clk 0:00:12.3]} 71... Rg1+ {[%clk 0:00:46.3]} 72. Kh3
{[%clk 0:00:13.1]} 72... Re1 {[%clk 0:00:42.9]} 73. Kg2 {[%clk 0:00:13.1]} 73...
Re2+ {[%clk 0:00:43.7]} 74. Kf1 {[%clk 0:00:11.8]} 74... Ra2 {[%clk 0:00:41.7]}
75. Rb3 {[%clk 0:00:11.1]} 75... Rf2+ {[%clk 0:00:40.6]} 76. Ke1 {[%clk
0:00:11.2]} 76... Ra2 {[%clk 0:00:39.1]} 77. Kf1 {[%clk 0:00:11]} 77... Rf2+
{[%clk 0:00:19.7]} 78. Ke1 {[%clk 0:00:11.6]} 78... Rc2 {[%clk 0:00:20.5]} 79.
Ra3 {[%clk 0:00:10]} 79... Bf2+ {[%clk 0:00:20.9]} 80. Kf1 {[%clk 0:00:10.8]}
80... Bc5 {[%clk 0:00:22.5]} 81. Rb3 {[%clk 0:00:10.8]} 81... Kd5 {[%clk
0:00:23.1]} 82. Rf3 {[%clk 0:00:09.6]} 82... Rc1+ {[%clk 0:00:24]} 83. Kg2
{[%clk 0:00:10.3]} 83... Be7 {[%clk 0:00:24.9]} 84. Rd3+ {[%clk 0:00:10.6]}
84... Kc6 {[%clk 0:00:22.9]} 85. Nf3 {[%clk 0:00:10.4]} 85... Rc2+ {[%clk
0:00:23.2]} 86. Rd2 {[%clk 0:00:11.3]} 86... Rxd2+ {[%clk 0:00:22]} 87. Nxd2
{[%clk 0:00:13.2]} 87... Kd5 {[%clk 0:00:22.8]} 88. Nf3 {[%clk 0:00:14.5]} 88...
Ke4 {[%clk 0:00:23.6]} 89. Nd2+ {[%clk 0:00:15.5]} 89... Kd3 {[%clk 0:00:24.2]}
90. Nf3 {[%clk 0:00:16.6]} 90... Bd6 {[%clk 0:00:25.6]} 91. Ng5 {[%clk
0:00:16.8]} 91... Ke3 {[%clk 0:00:25.7]} 92. Nf3 {[%clk 0:00:17.3]} 92... Bc7
{[%clk 0:00:25.2]} 93. Ng5 {[%clk 0:00:18]} 93... Bd6 {[%clk 0:00:24.6]} 94. Nf3
{[%clk 0:00:18.8]} 94... Be7 {[%clk 0:00:25.9]} 95. Ne1 {[%clk 0:00:18.7]} 95...
Bf6 {[%clk 0:00:26.3]} 96. Nf3 {[%clk 0:00:19.8]} 96... Ke2 {[%clk 0:00:27.4]}
97. Ng1+ {[%clk 0:00:20]} 97... Kd3 {[%clk 0:00:28.6]} 98. Nf3 {[%clk
0:00:21.5]} 98... Ke4 {[%clk 0:00:30]} 99. Nd2+ {[%clk 0:00:22.4]} 99... Kd5
{[%clk 0:00:30.1]} 100. Nf3 {[%clk 0:00:23.8]} 100... Kc4 {[%clk 0:00:30.6]}
101. Kf2 {[%clk 0:00:24.8]} 101... Kd3 {[%clk 0:00:31.7]} 102. Kg2 {[%clk
0:00:25.3]} 102... Ke2 {[%clk 0:00:31.3]} 103. Ng1+ {[%clk 0:00:26.5]} 103...
Ke3 {[%clk 0:00:32.7]} 104. Nf3 {[%clk 0:00:27.4]} 104... Bg7 {[%clk 0:00:33.9]}
105. Ng5 {[%clk 0:00:28.1]} 105... Bf6 {[%clk 0:00:31.5]} 106. Nf3 {[%clk
0:00:29.1]} 106... Ke4 {[%clk 0:00:31.8]} 107. Nd2+ {[%clk 0:00:30]} 107... Kd5
{[%clk 0:00:32.9]} 108. Nf3 {[%clk 0:00:31.1]} 108... Bc3 {[%clk 0:00:34.1]}
109. Ng1 {[%clk 0:00:31.7]} 109... Ke4 {[%clk 0:00:34.3]} 110. Ne2 {[%clk
0:00:32]} 110... Be5 {[%clk 0:00:34.7]} 111. Ng1 {[%clk 0:00:33.1]} 111... Bd4
{[%clk 0:00:31]} 112. Nf3 {[%clk 0:00:34]} 112... Bf6 {[%clk 0:00:31.3]} 113.
Nd2+ {[%clk 0:00:34.6]} 113... Ke3 {[%clk 0:00:31.8]} 114. Nf1+ {[%clk
0:00:35.3]} 114... Ke2 {[%clk 0:00:32.1]} 115. Nh2 {[%clk 0:00:35.4]} 115... Bd8
{[%clk 0:00:32]} 116. Nf3 {[%clk 0:00:36.4]} 116... Bc7 {[%clk 0:00:33.3]} 117.
Nd4+ {[%clk 0:00:37]} 117... Ke3 {[%clk 0:00:33.4]} 118. Ne6 {[%clk 0:00:38.1]}
118... Bd6 {[%clk 0:00:32.5]} 119. Ng5 {[%clk 0:00:38.9]} 119... Bc5 {[%clk
0:00:26.7]} 120. Nf3 {[%clk 0:00:38.9]} 120... Bd6 {[%clk 0:00:25.2]} 121. Ng5
{[%clk 0:00:39.9]} 121... Be7 {[%clk 0:00:24.8]} 122. Nf3 {[%clk 0:00:39.2]}
122... Ke4 {[%clk 0:00:25.9]} 123. Nd2+ {[%clk 0:00:39]} 123... Ke5 {[%clk
0:00:26]} 124. Kf3 {[%clk 0:00:39.7]} 124... Bd8 {[%clk 0:00:25.1]} 125. Nc4+
{[%clk 0:00:40.6]} 125... Kd4 {[%clk 0:00:25.7]} 126. Ne3 {[%clk 0:00:40.8]}
126... Bc7 {[%clk 0:00:25.9]} 127. Ng2 {[%clk 0:00:40.8]} 127... Kd5 {[%clk
0:00:14.3]} 128. Nf4+ {[%clk 0:00:40.7]} 128... Bxf4 {[%clk 0:00:15]} 129. Kxf4
{[%clk 0:00:42]} 129... Ke6 {[%clk 0:00:16.6]} 130. Kg5 {[%clk 0:00:42.7]}
130... Kf7 {[%clk 0:00:17.3]} 131. h5 {[%clk 0:00:42.9]} 131... gxh5 {[%clk
0:00:17.6]} 132. Kxf5 {[%clk 0:00:43.8]} 132... h4 {[%clk 0:00:18.7]} 133. gxh4
{[%clk 0:00:44.4]} 133... Kg7 {[%clk 0:00:19.9]} 134. Kg5 {[%clk 0:00:45.1]}
1/2-1/2